fUSD/lending_fUSD_20260111
["ID","MTS","AMOUNT","RATE_DAILY","PERIOD"]
[401274207,1768090248538,-250.0,0.00020858,2]
[401274208,1768090248547,-620.0,0.00020858,2]
[401274209,1768090248557,-250.0,0.00020858,2]
[401274210,1768090248567,-250.0,0.00020858,2]
[401274211,1768090248577,-250.0,0.00020858,2]
[401274212,1768090248587,-250.0,0.00020858,2]
[401274213,1768090248596,-250.0,0.00020858,2]
[401274214,1768090248606,-250.0,0.00020858,2]
[401274215,1768090248616,-250.0,0.00020858,2]
[401274216,1768090248626,-500.0,0.00020858,2]
[401274217,1768090248635,-250.0,0.00020858,2]
[401274218,1768090248644,-500.0,0.00020858,2]
[401274219,1768090248654,-260.34840278,0.00020858,2]
[401274220,1768090248663,-500.0,0.00020858,2]
[401274221,1768090248673,-500.0,0.00020858,2]
[401274222,1768090248683,-500.0,0.00020858,2]
[401274223,1768090248693,-500.0,0.00020858,2]
[401274224,1768090248702,-500.0,0.00020858,2]
[401274225,1768090248711,-500.0,0.00020858,2]
[401274226,1768090248721,-500.0,0.00020858,2]
[401274227,1768090248730,-500.0,0.00020858,2]
[401274228,1768090248740,-500.0,0.00020858,2]
[401274229,1768090248750,-1000.0,0.00020917,2]
[401274230,1768090248760,-350.0,0.00021,2]
[401274231,1768090248770,-3558.06,0.00021041,2]
[401274232,1768090248780,-2000.0,0.000212,2]
[401274233,1768090248790,-422.97195805,0.000219,2]
[401274234,1768090248799,-5000.0,0.00021918,2]
[401274235,1768090248809,-500.0,0.00021918,2]
[401274236,1768090248819,-445.90590967,0.00021918,2]
[401274237,1768090248829,-499.99999999,0.00021918,2]
[401274238,1768090248838,-191.50050407,0.00021976,2]
[401274239,1768090248848,-191.50050407,0.00021976,2]
[401274240,1768090248858,-500.0,0.00021999,2]
[401274241,1768090248868,-114708.01353197,0.00022,4]
[401274242,1768090248877,-500.0,0.00022092,2]
[401274243,1768090248897,-5608.23,0.000221,7]
[401274244,1768090248909,-365.26,0.00022103,2]
[401274245,1768090248919,-1012.9,0.00022351,2]
[401274246,1768090248929,-500.0,0.00022608,2]
[401274247,1768090248938,-150.0,0.00022608,2]
[401274248,1768090248948,-4849.0,0.00022621,2]
[401274249,1768090248959,-500.0,0.00022719,2]
[401274250,1768090248969,-396.0,0.00022857,2]
[401274251,1768090248979,-3740.1586,0.00022876,2]
[401274252,1768090248989,-168.0,0.00022898,2]
[401274253,1768090248999,-3468.0,0.00022976,2]
[401274254,1768090249009,-1330.0,0.00022976,2]
[401274255,1768090249020,-1405.0,0.00022976,2]
[401274256,1768090249029,-1266.0,0.00022976,2]
[401274257,1768090249039,-505.0,0.00022976,2]
[401274258,1768090249049,-1201.0,0.00022976,2]
[401274259,1768090249059,-914.0,0.00022976,2]
[401274260,1768090249068,-4820.0,0.00022976,2]
[401274261,1768090249079,-2437.0,0.00022976,2]
[401274262,1768090249100,-6554.0,0.00022976,2]
[401274263,1768090249110,-566.0,0.00022976,2]
[401274264,1768090249120,-400.0,0.00023,2]
[401274265,1768090249139,-1000.0,0.00023014,2]
[401274266,1768090249152,-168.0,0.00023062,2]
[401274267,1768090249163,-150.0,0.00023068,2]
[401274268,1768090249175,-150.0,0.00023068,2]
[401274269,1768090249187,-150.0,0.00023068,2]
[401274270,1768090249198,-150.0,0.00023068,2]
[401274271,1768090249209,-150.0,0.00023068,2]
[401274272,1768090249218,-500.0,0.00023068,2]
[401274273,1768090249228,-500.0,0.00023068,2]
[401274274,1768090249239,-500.0,0.00023068,2]
[401274275,1768090249249,-150.0,0.00023068,2]
[401274276,1768090249259,-150.0,0.00023068,2]
[401274277,1768090249269,-500.0,0.00023068,2]
[401274278,1768090249283,-500.0,0.00023068,2]
[401274279,1768090249293,-190.19225777,0.00023123,2]
[401274280,1768090249302,-500.0,0.00023123,2]
[401274281,1768090249312,-500.0,0.00023123,2]
[401274282,1768090249322,-500.0,0.00023123,2]
[401274283,1768090249332,-500.0,0.00023123,2]
[401274284,1768090249341,-500.0,0.00023123,2]
[401274285,1768090249354,-151.0,0.00023123,2]
[401274286,1768090249364,-151.0,0.00023123,2]
[401274287,1768090249378,-151.0,0.00023123,2]
[401274288,1768090249389,-151.0,0.00023123,2]
[401274289,1768090249399,-151.0,0.00023123,2]
[401274290,1768090249409,-151.0,0.00023123,2]
[401274291,1768090249419,-151.0,0.00023123,2]
[401274292,1768090249429,-151.0,0.00023123,2]
[401274293,1768090249440,-151.0,0.00023123,2]
[401274294,1768090249451,-151.0,0.00023123,2]
[401274295,1768090249462,-300.0,0.00023172,2]
[401274296,1768090249478,-150.0,0.00023172,2]
[401274297,1768090249490,-150.0,0.00023172,2]
[401274298,1768090249501,-150.0,0.00023172,2]
[401274299,1768090249513,-500.0,0.00023178,2]
[401274300,1768090249524,-500.0,0.00023178,2]
[401274301,1768090249534,-500.0,0.00023178,2]
[401274302,1768090249544,-500.0,0.00023178,2]
[401274303,1768090249553,-500.0,0.00023178,2]
[401274304,1768090249563,-500.0,0.00023232,2]
[401274305,1768090249572,-500.0,0.00023232,2]
[401274306,1768090249582,-500.0,0.00023232,2]
[401274307,1768090249592,-500.0,0.00023232,2]
[401274308,1768090249603,-500.0,0.00023232,2]
[401274309,1768090249615,-157.72323008,0.00023254,2]
[401274310,1768090249625,-500.0,0.00023287,2]
[401274311,1768090249634,-500.0,0.00023287,2]
[401274312,1768090249647,-500.0,0.00023287,2]
[401274313,1768090249657,-500.0,0.00023287,2]
[401274314,1768090249667,-1000.0,0.00023288,2]
[401274315,1768090249676,-500.0,0.00023327,2]
[401274316,1768090249687,-500.0,0.00023342,2]
[401274317,1768090249697,-500.0,0.00023342,2]
[401274318,1768090249707,-500.0,0.00023342,2]
[401274319,1768090249717,-500.0,0.00023342,2]
[401274320,1768090249727,-189.97512683,0.00023397,2]
[401274321,1768090249737,-585.48487047,0.00023397,2]
[401274322,1768090249747,-500.0,0.00023397,2]
[401274323,1768090249758,-500.0,0.00023397,2]
[401274324,1768090249768,-500.0,0.00023452,2]
[401274325,1768090249778,-500.0,0.00023452,2]
[401274326,1768090249787,-208.22403406,0.00023506,2]
[401274327,1768090249797,-500.0,0.00023506,2]
[401274328,1768090249807,-974.0,0.00023559,2]
[401274329,1768090249817,-500.0,0.00023561,2]
[401274330,1768090249828,-1000.0,0.00023562,2]
[401274331,1768090249838,-998.0,0.00023597,2]
[401274332,1768090249849,-500.0,0.00023616,2]
[401274333,1768090249859,-974.0,0.00023616,2]
[401274334,1768090249870,-974.0,0.00023643,2]
[401274335,1768090249881,-332.0,0.00023671,2]
[401274336,1768090249890,-500.0,0.00023745,2]
[401274337,1768090249901,-220.17,0.00023751,2]
[401274338,1768090249910,-974.0,0.00023773,2]
[401274339,1768090249920,-306.0,0.000238,2]
[401274340,1768090249930,-300.0,0.000238,2]
[401274341,1768090249940,-979.0,0.000238,2]
[401274342,1768090249949,-1000.0,0.00023836,2]
[401274343,1768090249959,-500.0,0.00023883,2]
[401274344,1768090249969,-974.0,0.00023905,2]
[401274345,1768090249978,-162.0,0.0002394,3]
[401274346,1768090249987,-265.2,0.0002395,2]
[401274347,1768090249997,-537.10754663,0.00023955,2]
[401274348,1768090250007,-151.0,0.00023984,2]
[401274349,1768090250017,-300.0,0.00023994,2]
[401274350,1768090250031,-3032.44949746,0.00024,2]
[401274351,1768090250040,-220.17,0.00024029,2]
[401274352,1768090250050,-974.0,0.00024082,2]
[401274353,1768090250060,-1000.0,0.0002411,2]
[401274354,1768090250070,-365.26,0.00024113,2]
[401274355,1768090250080,-974.0,0.00024121,2]
[401274356,1768090250090,-974.0,0.00024262,2]
[401274357,1768090250099,-1000.0,0.00024384,2]
[401274358,1768090250109,-501.0,0.00024397,2]
[401274359,1768090250119,-800.0,0.0002444,9]
[401274360,1768090250129,-800.0,0.0002444,9]
[401274361,1768090250138,-800.0,0.0002444,9]
[401274362,1768090250149,-800.0,0.0002444,9]
[401274363,1768090250159,-800.0,0.0002444,9]
[401274364,1768090250169,-800.0,0.0002444,9]
[401274365,1768090250179,-800.0,0.0002444,9]
[401274366,1768090250189,-800.0,0.0002444,9]
[401274367,1768090250198,-151.0,0.00024452,2]
[401274368,1768090250208,-151.0,0.00024452,2]
[401274369,1768090250219,-151.0,0.00024452,2]
[401274370,1768090250233,-220.17,0.00024469,2]
[401274371,1768090250251,-8424.24539855,0.000245,2]
[401274372,1768090250262,-974.0,0.00024586,2]
[401274373,1768090250274,-974.0,0.0002464,2]
[401274374,1768090250288,-195.4,0.00024658,5]
[401274375,1768090250298,-1248.25,0.00024658,2]
[401274376,1768090250308,-151.0,0.00024658,2]
[401274377,1768090250318,-151.0,0.00024658,2]
[401274378,1768090250328,-244.00502,0.00024658,2]
[401274379,1768090250338,-1000.0,0.00024658,2]
[401274380,1768090250350,-1000.0,0.00024658,2]
[401274381,1768090250362,-151.0,0.00024658,7]
[401274382,1768090250371,-151.0,0.00024658,7]
[401274383,1768090250381,-151.0,0.00024658,7]
[401274384,1768090250391,-151.0,0.00024658,7]
[401274385,1768090250401,-151.0,0.00024658,7]
[401274386,1768090250412,-151.0,0.00024658,7]
[401274387,1768090250427,-151.0,0.00024658,7]
[401274388,1768090250439,-151.0,0.00024658,7]
[401274389,1768090250450,-646.13206479,0.000247,2]
[401274390,1768090250459,-852.9751,0.0002475,2]
[401274391,1768090250469,-852.9751,0.0002475,2]
[401274392,1768090250479,-852.97511,0.0002475,2]
[401274393,1768090250488,-852.97511,0.0002475,2]
[401274394,1768090250497,-852.97511,0.0002475,2]
[401274395,1768090250506,-1249.80292283,0.00024799,10]
[401274396,1768090250516,-500.0,0.00024799,2]
[401274397,1768090250525,-151.0,0.000248,7]
[401274398,1768090250535,-151.0,0.000248,7]
[401274399,1768090250546,-151.0,0.000248,7]
[401274400,1768090250555,-151.0,0.000248,7]
[401274401,1768090250565,-151.0,0.000248,7]
[401274402,1768090250575,-151.0,0.000248,7]
[401274403,1768090250584,-151.0,0.000248,7]
[401274404,1768090250594,-151.0,0.000248,7]
[401274405,1768090250603,-151.0,0.000248,7]
[401274406,1768090250613,-151.0,0.000248,7]
[401274407,1768090250622,-203.788807,0.000248,7]
[401274408,1768090250632,-307.994746,0.000248,7]
[401274409,1768090250641,-307.994746,0.000248,7]
[401274410,1768090250651,-307.994746,0.000248,7]
[401274411,1768090250660,-307.994746,0.000248,7]
[401274412,1768090250670,-151.0,0.000248,7]
[401274413,1768090250680,-151.0,0.000248,7]
[401274414,1768090250690,-109741.270314,0.000248,3]
[401274415,1768090250701,-212.723732,0.000248,7]
[401274416,1768090250711,-151.0,0.000248,7]
[401274417,1768090250720,-842.09279973,0.000248,2]
[401274418,1768090250730,-1249.80292284,0.00024899,10]
[401274419,1768090250740,-96029.37353195,0.000249,2]
[401274420,1768090251043,502.7457157,0.00014046,2]
[401274421,1768090255002,500.0,0.00014046,2]
[401274422,1768090255043,500.0,0.00014046,2]
[401274423,1768090255096,500.0,0.00014046,2]
[401274424,1768090262170,-4384.9352871,0.00014047,2]
[401274425,1768090262320,-10000.01,0.00014047,2]
[401274426,1768090262451,-10000.01,0.00014047,2]
[401274427,1768090262573,-10000.01,0.00014047,2]
[401274428,1768090273755,-500.0,0.00014046,2]
[401274429,1768090273787,-500.0,0.00014046,2]
[401274430,1768090273819,-500.0,0.00014046,2]
[401274431,1768090273851,-2000.01,0.00014047,2]
[401274432,1768090273929,-2999.99,0.00014047,2]
[401274433,1768090273956,-10000.01,0.00014047,2]
[401274434,1768090274140,-10000.01,0.00014047,2]
[401274435,1768090274335,-10000.01,0.00014047,2]
[401274436,1768090274559,-10000.01,0.00014047,2]
[401274437,1768090274793,-10000.01,0.00014047,2]
[401274438,1768090295408,-1963.878,0.00013766,2]
[401274439,1768090295442,-172.611,0.00013766,2]
[401274440,1768090296371,163.67710556,0.00013947,2]
[401274441,1768090301461,163.67710556,0.00013947,2]
[401274442,1768090321257,300.0,0.00014046,2]
[401274443,1768090322002,150.0,0.00014046,2]
[401274444,1768090345011,4949.67778888,0.00013947,2]
[401274445,1768090345037,10000.01,0.00013947,2]
[401274446,1768090345062,3398.67788322,0.00013947,2]
[401274447,1768090356103,1399.130102,0.00013976,2]
[401274448,1768090381350,300.0,0.00014046,2]
[401274449,1768090420813,530.28554666,0.00014046,2]
[401274450,1768090420870,530.28554666,0.00014046,2]
[401274451,1768090420963,530.28554666,0.00014046,2]
[401274452,1768090421012,530.28554666,0.00014046,2]
[401274453,1768090421438,530.28554666,0.00014046,2]
[401274454,1768090421486,530.28554666,0.00014046,2]
[401274455,1768090421571,530.28554666,0.00014046,2]
[401274456,1768090421621,530.28554666,0.00014046,2]
[401274457,1768090421673,530.28554666,0.00014046,2]
[401274458,1768090421721,129.63209484,0.00014046,2]
[401274459,1768090421751,400.65345182,0.00014046,2]
[401274460,1768090421844,530.28554666,0.00014046,2]
[401274461,1768090421895,530.28554666,0.00014046,2]
[401274462,1768090421946,530.28554666,0.00014046,2]
[401274463,1768090422005,530.28554666,0.00014046,2]
[401274464,1768090422047,530.28554666,0.00014046,2]
[401274465,1768090422090,530.28554666,0.00014046,2]
[401274466,1768090422146,530.28554666,0.00014046,2]
[401274467,1768090422196,530.28554666,0.00014046,2]
[401274468,1768090422267,530.28554666,0.00014046,2]
[401274469,1768090422316,530.28554666,0.00014046,2]
[401274470,1768090422381,530.28554666,0.00014046,2]
[401274471,1768090422429,530.28554666,0.00014046,2]
[401274472,1768090422508,530.28554666,0.00014046,2]
[401274473,1768090422564,530.28554666,0.00014046,2]
[401274474,1768090422620,530.28554666,0.00014046,2]
[401274475,1768090422677,530.28554666,0.00014046,2]
[401274476,1768090422731,530.28554666,0.00014046,2]
[401274477,1768090422781,530.28554666,0.00014046,2]
[401274478,1768090422830,54.2167083,0.00014046,2]
[401274479,1768090422860,476.06883836,0.00014046,2]
[401274480,1768090422907,530.28554666,0.00014046,2]
[401274481,1768090422954,530.28554666,0.00014046,2]
[401274482,1768090423026,530.28554666,0.00014046,2]
[401274483,1768090423073,530.28554666,0.00014046,2]
[401274484,1768090423115,530.28554666,0.00014046,2]
[401274485,1768090423160,530.28554666,0.00014046,2]
[401274486,1768090423204,530.28554666,0.00014046,2]
[401274487,1768090423266,530.28554666,0.00014046,2]
[401274488,1768090423326,530.28554666,0.00014046,2]
[401274489,1768090424128,163.67710556,0.00013947,2]
[401274490,1768090426581,163.67710556,0.00013947,2]
[401274491,1768090432105,594.77973477,0.00014046,2]
[401274492,1768090432160,594.77973477,0.00014046,2]
[401274493,1768090432231,594.77973477,0.00014046,2]
[401274494,1768090432297,594.77973477,0.00014046,2]
[401274495,1768090432352,594.77973477,0.00014046,2]
[401274496,1768090432413,594.77973477,0.00014046,2]
[401274497,1768090432467,594.77973477,0.00014046,2]
[401274498,1768090432532,260.55888719,0.00014046,2]
[401274499,1768090432567,334.22084758,0.00014046,2]
[401274500,1768090432627,594.77973477,0.00014046,2]
[401274501,1768090432697,594.77973477,0.00014046,2]
[401274502,1768090432763,594.77973477,0.00014046,2]
[401274503,1768090432818,594.77973477,0.00014046,2]
[401274504,1768090432875,594.77973477,0.00014046,2]
[401274505,1768090432927,594.77973477,0.00014046,2]
[401274506,1768090432987,594.77973477,0.00014046,2]
[401274507,1768090433036,594.77973477,0.00014046,2]
[401274508,1768090433104,594.77973477,0.00014046,2]
[401274509,1768090433150,594.77973477,0.00014046,2]
[401274510,1768090433196,594.77973477,0.00014046,2]
[401274511,1768090433242,594.77973477,0.00014046,2]
[401274512,1768090433310,594.77973477,0.00014046,2]
[401274513,1768090433364,594.77973477,0.00014046,2]
[401274514,1768090433410,594.77973477,0.00014046,2]
[401274515,1768090433475,594.77973477,0.00014046,2]
[401274516,1768090433534,149.3133961,0.00014046,2]
[401274517,1768090433568,445.46633867,0.00014046,2]
[401274518,1768090441243,300.0,0.00014046,2]
[401274520,1768090465930,500.0,0.00014046,2]
[401274521,1768090466168,483.79003433,0.00014046,2]
[401274522,1768090482472,2518.1429,0.00013947,2]
[401274523,1768090498144,2055.69922,0.00013976,2]
[401274524,1768090501191,1200.0,0.00014046,2]
[401274525,1768090501231,300.0,0.00014046,2]
[401274526,1768090501271,300.0,0.00014046,2]
[401274527,1768090501919,150.0,0.00014046,2]
[401274528,1768090502274,1746.911507,0.00013947,2]
[401274529,1768090502298,7213.28267175,0.00013947,2]
[401274530,1768090503168,233.0,0.00014046,2]
[401274531,1768090508976,236.6149,0.00013947,2]
[401274532,1768090522331,397.40808875,0.00014046,2]
[401274533,1768090532892,510.22074743,0.00014046,2]
[401274534,1768090534370,297.61409403,0.00013947,2]
[401274535,1768090539613,500.0,0.00014046,2]
[401274536,1768090539846,500.0,0.00014046,2]
[401274537,1768090540076,111.86949804,0.00014046,2]
[401274538,1768090540100,388.13050196,0.00014046,2]
[401274539,1768090540958,297.61409403,0.00013947,2]
[401274540,1768090541111,500.0,0.00014046,2]
[401274541,1768090541163,500.0,0.00014046,2]
[401274542,1768090560615,500.0,0.00014046,2]
[401274543,1768090560840,500.0,0.00014046,2]
[401274544,1768090561066,500.0,0.00014046,2]
[401274545,1768090576289,3864.8249,0.00013947,2]
[401274546,1768090577868,500.0,0.00014046,2]
[401274547,1768090578092,500.0,0.00014046,2]
[401274548,1768090578314,500.0,0.00014046,2]
[401274549,1768090582430,1449.44050401,0.00013947,2]
[401274550,1768090582456,1809.25379599,0.00013947,2]
[401274551,1768090587301,500.0,0.00014046,2]
[401274552,1768090587557,500.0,0.00014046,2]
[401274553,1768090587807,500.0,0.00014046,2]
[401274554,1768090588827,1926.0025,0.00013947,2]
[401274555,1768090600768,580.8405692,0.00013947,2]
[401274556,1768090630593,200.0,0.00014047,2]
[401274557,1768090635239,500.0,0.00014046,2]
[401274558,1768090635466,509.32,0.00014046,2]
[401274559,1768090638317,151.0,0.00014047,2]
[401274560,1768090641762,-7096.57113481,0.00014047,2]
[401274561,1768090642108,200.0,0.00014047,2]
[401274562,1768090642723,169.59396551,0.00014047,2]
[401274563,1768090651334,-151.0,0.00014047,2]
[401274564,1768090651365,-151.0,0.00014047,2]
[401274565,1768090651396,-500.0,0.00014047,2]
[401274566,1768090651428,-503.5980868,0.00014047,2]
[401274567,1768090651460,-151.0,0.00014047,2]
[401274568,1768090651491,-500.0,0.00014047,2]
[401274569,1768090651525,-151.0,0.00014047,2]
[401274570,1768090651556,-500.0,0.00014047,2]
[401274571,1768090651586,-151.0,0.00014047,2]
[401274572,1768090651617,-500.0,0.00014047,2]
[401274573,1768090651651,-151.0,0.00014047,2]
[401274574,1768090651682,-500.0,0.00014047,2]
[401274575,1768090651712,-151.0,0.00014047,2]
[401274576,1768090651744,-500.0,0.00014047,2]
[401274577,1768090651774,-151.0,0.00014047,2]
[401274578,1768090651804,-151.0,0.00014047,2]
[401274579,1768090652039,-500.0,0.00014047,2]
[401274580,1768090652070,-151.0,0.00014047,2]
[401274581,1768090652100,-500.0,0.00014047,2]
[401274582,1768090652129,-500.0,0.00014047,2]
[401274583,1768090652336,-500.0,0.00014047,2]
[401274584,1768090652425,-6198.01,0.00014047,2]
[401274585,1768090652455,-10000.01,0.00014047,2]
[401274586,1768090652471,-500.0,0.00014047,2]
[401274587,1768090652487,-9000.01,0.00014047,2]
[401274588,1768090652505,-10000.01,0.00014047,2]
[401274589,1768090652538,-10000.01,0.00014047,2]
[401274590,1768090652686,-10000.01,0.00014047,2]
[401274591,1768090653107,-10000.01,0.00014047,2]
[401274592,1768090653142,-10000.01,0.00014047,2]
[401274593,1768090664096,-151.0,0.00014047,2]
[401274594,1768090664131,-151.0,0.00014047,2]
[401274595,1768090664164,-151.0,0.00014047,2]
[401274596,1768090664201,-151.0,0.00014047,2]
[401274597,1768090664235,-151.0,0.00014047,2]
[401274598,1768090664268,-151.0,0.00014047,2]
[401274599,1768090664304,-151.0,0.00014047,2]
[401274600,1768090664337,-151.0,0.00014047,2]
[401274601,1768090664370,-151.0,0.00014047,2]
[401274602,1768090664403,-151.0,0.00014047,2]
[401274603,1768090664444,-151.0,0.00014047,2]
[401274604,1768090664476,-151.0,0.00014047,2]
[401274605,1768090664508,-151.0,0.00014047,2]
[401274606,1768090664540,-151.0,0.00014047,2]
[401274607,1768090664572,-151.0,0.00014047,2]
[401274608,1768090664608,-151.0,0.00014047,2]
[401274609,1768090664644,-151.0,0.00014047,2]
[401274610,1768090664682,-151.0,0.00014047,2]
[401274611,1768090664715,-151.0,0.00014047,2]
[401274612,1768090664748,-151.0,0.00014047,2]
[401274613,1768090664806,3960.01,0.00013947,2]
[401274614,1768090677658,-952.84660358,0.00013947,2]
[401274615,1768090677753,-810.46259376,0.00013947,2]
[401274616,1768090677789,-4419.07481248,0.00013947,2]
[401274617,1768090678031,-3960.01,0.00013947,2]
[401274618,1768090678063,-151.0,0.00014047,2]
[401274619,1768090678095,-151.0,0.00014047,2]
[401274620,1768090681853,150.0,0.00014046,2]
[401274621,1768090682074,500.0,0.00027397,120]
[401274622,1768090682570,300.0,0.00014046,2]
[401274623,1768090685291,206.13,0.00014047,2]
[401274624,1768090687349,-9343.88,0.00014047,2]
[401274625,1768090687921,301.35648378,0.00013947,2]
[401274626,1768090695334,-9698.65351622,0.00014047,2]
[401274627,1768090695471,518.50351622,0.00014046,2]
[401274628,1768090695495,681.49648378,0.00014046,2]
[401274629,1768090695544,-8800.01,0.00014047,2]
[401274630,1768090695578,-10000.01,0.00014047,2]
[401274631,1768090695705,-10000.01,0.00014047,2]
[401274632,1768090714720,-263.68692329,0.00013947,2]
[401274633,1768090731325,500.0,0.00014046,2]
[401274634,1768090731560,500.0,0.00014046,2]
[401274635,1768090731790,500.0,0.00014046,2]
[401274636,1768090732903,7972.63615342,0.00013947,2]
[401274637,1768090732929,10000.01,0.00013947,2]
[401274638,1768090732960,10000.01,0.00013947,2]
[401274639,1768090732985,10000.01,0.00013947,2]
[401274640,1768090733011,10000.01,0.00013947,2]
[401274641,1768090733036,3938.46644658,0.00013947,2]
[401274642,1768090736188,500.0,0.00014046,2]
[401274643,1768090736415,500.0,0.00014046,2]
[401274644,1768090736658,435.97578005,0.00014046,2]
[401274645,1768090738027,2500.0,0.00013947,2]
[401274646,1768090741811,300.0,0.00014046,2]
[401274647,1768090774409,1000.0,0.00014047,2]
[401274648,1768090775591,825.56777337,0.00014047,2]
[401274649,1768090776959,-13.71594925,0.00014047,2]
[401274650,1768090782413,268.42305266,0.00014036,2]
[401274651,1768090786767,969.4529,0.00013947,2]
[401274652,1768090787817,500.0,0.00014046,2]
[401274653,1768090788076,500.0,0.00014046,2]
[401274654,1768090788330,500.0,0.00014046,2]
[401274655,1768090801740,300.0,0.00014046,2]
[401274656,1768090801778,1200.0,0.00014046,2]
[401274657,1768090803783,266.0,0.00014047,2]
[401274658,1768090803821,5115.31,0.00014037,2]
[401274659,1768090804182,353.39214884,0.00014037,2]
[401274660,1768090855439,10000.01,0.00013947,2]
[401274661,1768090855465,8788.26829358,0.00013947,2]
[401274662,1768090873177,368.91653307,0.00013947,2]
[401274663,1768090887772,-424.01788079,0.00013947,2]
[401274664,1768090889014,-1000.04055834,0.00013947,2]
[401274665,1768090891149,-178.7485779,0.00013947,2]
[401274666,1768090892760,-294.27108077,0.00013947,2]
[401274667,1768090894341,842.82517335,0.00013766,2]
[401274668,1768090894369,1597.81082665,0.00013766,2]
[401274669,1768090894435,188.893,0.00013766,2]
[401274670,1768090894933,-534.2348184,0.00013947,2]
[401274671,1768090896714,-366.23046181,0.00013947,2]
[401274672,1768090900259,-365.97810717,0.00013947,2]
[401274673,1768090903767,-262.8601924,0.00013947,2]
[401274674,1768090906650,-305.85712123,0.00013947,2]
[401274675,1768090909555,577.89581189,0.00013847,2]
[401274676,1768090909587,-317.65263784,0.00013947,2]
[401274677,1768090911878,-438.83419989,0.00013947,2]
[401274678,1768090912125,750.332204,0.00013877,2]
[401274679,1768090914059,-406.26850055,0.00013947,2]
[401274680,1768090915298,577.89581189,0.00013897,2]
[401274681,1768090916883,-327.35102196,0.00013947,2]
[401274682,1768090920297,-225.77854245,0.00013947,2]
[401274683,1768090921329,577.89581189,0.00013947,2]
[401274684,1768090921943,-311.08932954,0.00013947,2]
[401274685,1768090924630,-290.29070041,0.00013947,2]
[401274686,1768090927122,-265.35230462,0.00013947,2]
[401274687,1768090929428,-300.0,0.00013947,2]
[401274688,1768090932353,-285.11861132,0.00013947,2]
[401274689,1768090935702,-309.3320007,0.00013947,2]
[401274690,1768090937430,-258.6558289,0.00013947,2]
[401274691,1768090939043,-304.05069773,0.00013947,2]
[401274692,1768090940612,-198.84160383,0.00013947,2]
[401274693,1768090942092,-319.51363937,0.00013947,2]
[401274694,1768090943831,-1049.17514544,0.00013947,2]
[401274695,1768090946114,-281.62,0.00013947,2]
[401274696,1768090949104,-295.63868731,0.00013947,2]
[401274697,1768090949789,214.0,0.00013808,2]
[401274698,1768090952514,-464.18501659,0.00013947,2]
[401274699,1768090955488,-166.66,0.00013947,2]
[401274701,1768090958252,-390.97888552,0.00013947,2]
[401274702,1768090961126,-172.36715775,0.00013947,2]
[401274703,1768090964535,-300.0,0.00013947,2]
[401274704,1768090966850,-300.0,0.00013947,2]
[401274705,1768090968583,-343.65027282,0.00013947,2]
[401274706,1768090970123,-441.03587444,0.00013947,2]
[401274707,1768090974313,-344.84854812,0.00013947,2]
[401274708,1768090975674,-172.95377143,0.00013947,2]